bitfinex-derivatives/quotes_BNBF0:USTF0_20250807
["timestamp","ask_amount","ask_price","bid_price","bid_amount"]
[1754593230763,0.85592679,778.36,777.79,0.8602505]
[1754593230963,0.85592679,778.35,777.79,0.8602505]
[1754593231164,0.85592679,778.34,777.79,0.8602505]
[1754593231364,0.981,778.38,777.79,0.8602505]
[1754593231563,0.855925,778.37,777.79,0.8602505]
[1754593231762,0.855925,778.36,777.79,0.8602505]
[1754593231973,0.855925,778.35,777.79,0.8602505]
[1754593232166,0.855925,778.34,777.79,0.8602505]
[1754593232462,0.981,778.38,777.79,0.8602505]
[1754593232666,0.85592439,778.37,777.79,0.8602505]
[1754593232863,0.85592439,778.36,777.79,0.8602505]
[1754593233066,0.85592439,778.35,777.79,0.8602505]
[1754593233264,0.85592439,778.34,777.79,0.8602505]
[1754593233464,0.981,778.38,777.79,0.8602505]
[1754593233665,0.85592499,778.37,777.79,0.8602505]
[1754593233864,0.85592499,778.36,777.79,0.8602505]
[1754593234065,0.85592499,778.35,777.79,0.8602505]
[1754593234269,0.85592499,778.34,777.79,0.8602505]
[1754593234568,0.981,778.38,777.79,0.8602505]
[1754593234765,0.85592676,778.37,777.79,0.8602505]
[1754593234969,0.85592676,778.36,777.79,0.8602505]
[1754593235168,0.981,778.38,777.79,0.8602505]
[1754593235370,0.85592676,778.37,777.79,0.8602505]
[1754593235664,0.85592676,778.36,777.8,0.8602505]
[1754593235869,0.85592676,778.35,777.8,0.8602505]
[1754593236169,0.981,778.38,777.8,0.8602505]
[1754593236170,0.85592676,778.34,777.8,0.8602505]
[1754593236370,0.981,778.38,777.8,0.8602505]
[1754593236569,0.8559298,778.37,777.8,0.8602505]
[1754593236768,0.8559298,778.36,777.8,0.8602505]
[1754593237068,0.8559298,778.35,777.8,0.8602505]
[1754593237263,0.8559298,778.34,777.8,0.8602505]
[1754593237465,0.981,778.38,777.8,0.8602505]
[1754593237668,0.85593591,778.37,777.8,0.8602505]
[1754593237868,0.85593591,778.36,777.8,0.8602505]
[1754593238164,0.85593591,778.35,777.84,0.8602505]
[1754593238371,0.85593591,778.34,777.84,0.8602505]
[1754593238569,0.981,778.38,777.84,0.8602505]
[1754593238769,0.85594367,778.37,777.84,0.8602505]
[1754593238965,0.85594367,778.36,777.91,0.8602505]
[1754593239168,0.85594367,778.35,777.9,0.8602505]
[1754593239465,0.85594367,778.34,777.91,0.8602505]
[1754593239765,0.85594367,778.33,777.91,0.8602505]
[1754593239968,0.85594367,778.32,777.91,0.8602505]
[1754593240172,0.85594367,778.31,777.91,0.8602505]
[1754593240467,0.85594367,778.3,777.92,0.8602505]
[1754593240670,0.85594367,778.29,777.92,0.8602505]
[1754593240871,0.981,778.38,777.92,0.8602505]
[1754593241068,0.8559628,778.37,777.92,0.8602505]
[1754593241269,0.8559628,778.36,777.93,0.8602505]
[1754593241565,0.8559628,778.35,777.92,0.8602505]
[1754593241769,0.8559628,778.34,777.92,0.8602505]
[1754593241969,0.8559628,778.33,777.92,0.8602505]
[1754593242166,0.8559628,778.32,777.92,0.8602505]
[1754593242366,0.8559628,778.31,777.92,0.8602505]
[1754593242669,0.8559628,778.3,777.92,0.8602505]
[1754593242867,0.8559628,778.29,777.92,0.8602505]
[1754593243064,0.981,778.38,777.92,0.8602505]
[1754593243270,0.8559922,778.37,777.92,0.8602505]
[1754593243468,0.8559922,778.36,777.92,0.8602505]
[1754593243671,0.8559922,778.35,777.92,0.8602505]
[1754593243871,0.8559922,778.52,777.92,0.8602505]
[1754593244068,0.86586083,778.53,777.92,0.8602505]
[1754593244273,0.85600242,778.52,777.92,0.8602505]
[1754593244473,0.85600242,778.51,777.92,0.8602505]
[1754593244674,0.85600242,778.5,777.92,0.8602505]
[1754593244870,0.85600242,778.49,777.92,0.8602505]
[1754593245076,0.85600242,778.48,777.92,0.8602505]
[1754593246576,0.85600242,778.48,777.76,1.1493026]
[1754593246577,0.85600242,778.48,777.93,0.8602505]
[1754593247975,0.85600242,778.47,777.96,0.8602505]
[1754593248175,0.85600242,778.46,777.96,0.8602505]
[1754593248376,0.85600242,778.45,777.96,0.8602505]
[1754593248578,0.85600242,778.44,777.96,0.8602505]
[1754593248772,0.85600242,778.43,777.96,0.8602505]
[1754593248977,0.85600242,778.42,777.96,0.8602505]
[1754593249175,0.85600242,778.41,777.97,0.8602505]
[1754593249376,0.85600242,778.4,777.97,0.8602505]
[1754593249572,0.85600242,778.39,777.96,0.8602505]
[1754593249777,0.85600242,778.38,777.96,0.8602505]
[1754593249975,0.85600242,778.37,777.96,0.8602505]
[1754593250172,0.85600242,778.36,777.96,0.8602505]
[1754593250374,0.85600242,778.35,777.97,0.8602505]
[1754593250574,0.85600242,778.34,777.97,0.8602505]
[1754593250875,0.85600242,778.33,777.97,0.8602505]
[1754593251075,0.85600242,778.32,777.97,0.8602505]
[1754593251274,0.85600242,778.31,777.97,0.8602505]
[1754593251481,0.85600242,778.3,777.97,0.8602505]
[1754593251779,0.86586083,778.48,777.96,0.8602505]
[1754593251980,0.85612178,778.47,777.96,0.8602505]
[1754593252277,0.85612178,778.46,777.96,0.8602505]
[1754593252474,0.85612178,778.45,777.96,0.8602505]
[1754593252678,0.85612178,778.44,777.96,0.8602505]
[1754593252878,0.86586083,778.48,777.96,0.8602505]
[1754593253077,0.8561332,778.47,777.95,0.8602505]
[1754593253279,0.8561332,778.46,777.95,0.8602505]
[1754593253577,0.8561332,778.45,777.95,0.8602505]
[1754593253778,0.8561332,778.44,777.95,0.8602505]
[1754593253975,1.138,778.49,777.95,0.8602505]
[1754593253976,0.8561332,778.43,777.95,0.8602505]
[1754593254280,0.8561332,778.42,777.95,0.8602505]
[1754593254479,0.8561332,778.41,777.94,0.8602505]
[1754593254674,0.8561332,778.4,777.94,0.8602505]
[1754593254879,0.8561332,778.39,777.94,0.8602505]
[1754593255077,0.8561332,778.38,777.94,0.8602505]
[1754593255277,0.8561332,778.37,777.94,0.8602505]
[1754593255479,0.8561332,778.36,777.93,0.8602505]
[1754593255679,0.8561332,778.35,777.93,0.8602505]
[1754593255877,0.8561332,778.34,777.77,1.1493026]
[1754593256079,0.85615975,778.33,777.93,0.85777469]
[1754593256379,1.138,778.49,777.93,0.85777469]
[1754593256583,0.85616152,778.48,777.93,0.85777469]
[1754593256780,0.85616152,778.47,777.93,0.85777469]
[1754593257082,0.85616152,778.46,777.93,0.85777469]
[1754593257282,0.85616152,778.45,777.94,0.85777469]
[1754593257482,0.85616152,778.44,777.94,0.85777469]
[1754593257681,0.85616152,778.43,777.94,0.85777469]
[1754593257877,0.85616152,778.42,777.94,0.85777469]
[1754593258082,0.85616152,778.41,777.94,0.85777469]
[1754593258379,0.85616152,778.4,777.94,0.85777469]
[1754593258682,0.85616152,778.39,777.9,0.85777469]
[1754593258983,0.85616152,778.38,777.9,0.85777469]
[1754593259283,1.138,778.49,777.9,0.85777469]
[1754593259480,0.8560013,778.48,777.9,0.85777469]
[1754593259684,0.8560013,778.47,777.9,0.85777469]
[1754593259882,0.8560013,778.46,777.9,0.85777469]
[1754593260083,0.8560013,778.45,777.9,0.85777469]
[1754593260382,0.8560013,778.44,777.9,0.85777469]
[1754593260583,0.8560013,778.43,777.9,0.85777469]
[1754593260783,0.8560013,778.42,777.9,0.85777469]
[1754593260981,0.8560013,778.41,777.9,0.85777469]
[1754593261284,1.138,778.49,777.9,0.85777469]
[1754593261486,0.85600139,778.48,777.9,0.85777469]
[1754593261784,0.85597255,778.47,777.9,0.85777469]
[1754593261982,0.85597255,778.46,777.9,0.85777469]
[1754593262183,0.85597255,778.45,777.9,0.85777469]
[1754593262481,0.85597255,778.44,777.9,0.85777469]
[1754593262681,0.85597255,778.43,777.86,0.85777469]
[1754593262885,0.85597255,778.42,777.86,0.85777469]
[1754593263086,1.138,778.49,777.86,0.85777469]
[1754593263282,0.85592459,778.48,777.86,0.85777469]
[1754593263585,0.85592459,778.47,777.86,0.85777469]
[1754593263785,0.85592459,778.46,777.86,0.85777469]
[1754593263980,0.85592459,778.45,777.86,0.85777469]
[1754593264186,0.85588994,778.44,777.86,0.85777469]
[1754593264384,0.85588994,778.43,777.86,0.85777469]
[1754593264686,0.85588994,778.42,777.86,0.85777469]
[1754593264986,1.138,778.49,777.86,0.85777469]
[1754593265186,0.85586311,778.48,777.86,0.85777469]
[1754593265385,0.85586311,778.47,777.86,0.85777469]
[1754593265583,0.85586311,778.46,777.86,0.85777469]
[1754593265783,0.85586311,778.45,777.86,0.85777469]
[1754593265982,0.85586311,778.44,777.86,0.85777469]
[1754593266189,0.85586311,778.43,777.86,0.85777469]
[1754593266482,0.85586311,778.42,777.86,0.85777469]
[1754593266691,1.138,778.49,777.86,0.85777469]
[1754593266887,0.8558244,778.48,777.86,0.85777469]
[1754593267082,0.8558244,778.47,777.86,0.85777469]
[1754593267285,0.8558244,778.46,777.86,0.85777469]
[1754593267484,0.8558244,778.45,777.86,0.85777469]
[1754593267687,0.8558244,778.44,777.86,0.85777469]
[1754593267887,0.8558244,778.43,777.86,0.85777469]
[1754593268187,1.138,778.49,777.86,0.85777469]
[1754593268389,0.85576734,778.48,777.86,0.85777469]
[1754593268687,0.85576734,778.47,777.87,0.85777469]
[1754593268882,0.85576734,778.46,777.87,0.85777469]
[1754593269083,0.85576734,778.45,777.88,0.85777469]
[1754593269287,0.85576734,778.44,777.88,0.85777469]
[1754593269493,0.85576734,778.43,777.88,0.85777469]
[1754593269693,0.85576734,778.42,777.88,0.85777469]
[1754593269893,1.138,778.49,777.88,0.85777469]
[1754593270298,0.85572043,778.48,777.88,0.85777469]
[1754593270499,0.85572043,778.47,777.88,0.85777469]
[1754593270701,0.85572048,778.46,777.88,0.85777469]
[1754593270900,0.85572048,778.45,777.87,0.85777469]
[1754593271100,0.85572048,778.44,777.87,0.85777469]
[1754593271397,0.85572048,778.43,777.87,0.85777469]
[1754593271701,0.85572048,778.42,777.87,0.85777469]
[1754593271903,1.138,778.49,777.87,0.85777469]
[1754593272102,0.85570132,778.48,777.88,0.85777469]
[1754593272299,0.85570132,778.47,777.91,0.85777469]
[1754593272503,0.85570132,778.46,777.89,0.85777469]
[1754593272701,0.85570132,778.45,777.86,0.85777469]
[1754593272902,0.85570132,778.44,777.86,0.85777469]
[1754593273101,0.85570132,778.43,777.86,0.85777469]
[1754593273303,0.85570132,778.42,777.85,0.85777469]
[1754593273502,0.85570132,778.41,777.86,0.85777469]
[1754593273701,0.85570132,778.4,777.86,0.85777469]
[1754593273900,1.138,778.49,777.02,0.22364751]
[1754593273901,0.85570132,778.39,777.84,0.85777469]
[1754593274101,0.86608769,778.46,777.02,0.22364751]
[1754593274102,0.85570132,778.38,777.81,0.85777469]
[1754593274300,0.85570132,778.37,777.81,0.85777469]
[1754593274501,0.85570132,778.36,777.81,0.85777469]
[1754593274704,0.85570132,778.35,777.81,0.85777469]
[1754593274903,0.86608769,778.41,777.81,0.85777469]
[1754593275102,0.85569165,778.4,777.81,0.85777469]
[1754593275400,0.86608769,778.25,777.66,0.85777469]
[1754593275605,0.86608769,778.21,777.61,0.85777469]
[1754593275803,0.86608769,778.2,777.61,0.85777469]
[1754593276004,0.86608769,778.19,777.6,0.85777469]
[1754593276305,0.86608769,778.21,777.57,0.85777469]
[1754593276806,0.86608769,778.19,777.58,0.85777469]
[1754593277309,0.86608769,778.21,777.56,0.85777469]
[1754593277805,0.86608769,778.18,777.58,0.85777469]
[1754593278307,0.86608769,778.23,777.52,0.85777469]
[1754593278811,0.86608769,778.14,777.43,0.85777469]
[1754593279307,0.86608769,778.17,777.41,0.85777469]
[1754593280309,0.86608769,778.18,777.39,0.85777469]
[1754593280506,0.86608769,778.15,777.36,0.85777469]
[1754593280710,0.86608769,778.09,777.29,0.85777469]
[1754593280910,0.86426722,778.09,777.29,0.85880493]
[1754593281108,0.86426722,778.09,777.3,0.85880493]
[1754593281312,4.0357688,779.42,777.02,0.22364751]
[1754593281313,0.86426722,778.12,777.27,0.85880493]
[1754593281507,0.86426722,778.12,777.26,0.85880493]
[1754593281812,1.033,778.11,777.26,0.85880493]
[1754593282412,1.033,778.11,777.24,0.85880493]
[1754593283412,1.033,778.11,777.22,0.85880493]
[1754593284311,1.033,778.11,777.2,0.85880493]
[1754593285108,1.033,778.11,777.12,0.85880493]
[1754593285310,1.033,778.11,777.11,0.85880493]
[1754593286208,1.033,778.11,777.1,0.85880493]
[1754593286414,1.033,778.11,777.09,0.85880493]
[1754593287309,1.033,778.11,777.08,0.85880493]
[1754593288415,1.033,778.11,777.06,0.85880493]
[1754593289313,1.033,778.11,777.05,0.85880493]
[1754593289518,1.033,778.11,777.04,0.85880493]
[1754593290414,1.033,778.11,777.03,0.85880493]
[1754593291417,1.033,778.11,777.02,1.08245244]
[1754593292418,1.033,778.11,777.11,0.85880493]
[1754593293316,1.033,778.11,777.1,0.85880493]
[1754593294319,1.033,778.11,777.09,0.85880493]
[1754593295419,1.033,778.11,777.08,0.85880493]
[1754593296119,1.033,778.11,777.09,0.85880493]
[1754593296420,1.033,778.11,777.13,0.85880493]
[1754593296621,1.033,778.11,777.16,0.85880493]
[1754593297320,1.033,778.11,777.15,0.85880493]
[1754593299323,1.033,778.11,777.16,0.85880493]
[1754593299818,1.033,778.11,777.15,0.85880493]
[1754593300023,1.033,778.11,777.13,0.85880493]
[1754593302425,1.033,778.11,777.14,0.85880493]
[1754593305730,0.86426722,778.33,777.14,0.85880493]
[1754593305927,0.85624697,778.32,777.14,0.85880493]
[1754593306127,0.85624697,778.31,777.14,0.85880493]
[1754593306327,0.86426722,778.33,777.14,0.85880493]
[1754593306631,0.86426722,778.33,777.18,0.22368776]
[1754593306828,0.85628819,778.32,777.18,0.22368776]
[1754593307028,0.85628819,778.31,777.18,0.22368776]
[1754593307328,0.86426722,778.33,777.18,0.22368776]
[1754593307532,1.91033156,778.32,777.18,0.22368776]
[1754593307826,0.85633156,778.31,777.18,0.22368776]
[1754593309734,1.054,778.32,777.18,0.22368776]
[1754593309934,0.85644435,778.31,777.18,0.22368776]
[1754593310132,1.054,778.32,777.18,0.22368776]
[1754593310333,0.85644229,778.31,777.18,0.22368776]
[1754593310529,1.054,778.32,777.18,0.22368776]
[1754593310734,0.85644229,778.31,777.18,0.22368776]
[1754593311028,1.054,778.32,777.18,0.22368776]
[1754593311229,0.85644355,778.31,777.18,0.22368776]
[1754593311430,1.054,778.32,777.18,0.22368776]
[1754593311630,0.85644024,778.31,777.18,0.22368776]
[1754593311833,1.054,778.32,777.18,0.22368776]
[1754593312029,0.85644024,778.31,777.18,0.22368776]
[1754593312236,1.054,778.32,777.18,0.22368776]
[1754593312435,0.85643904,778.31,777.18,0.22368776]
[1754593312734,1.054,778.32,777.18,0.22368776]
[1754593313034,0.85643904,778.31,777.18,0.22368776]
[1754593313235,1.054,778.32,777.18,0.22368776]
[1754593313535,0.85643773,778.31,777.18,0.22368776]
[1754593313834,1.054,778.32,777.18,0.22368776]
[1754593314034,0.85643773,778.31,777.18,0.22368776]
[1754593314331,1.054,778.32,777.18,0.22368776]
[1754593314332,0.85643652,778.3,777.18,0.22368776]
[1754593314530,1.91826722,778.32,777.18,0.22368776]
[1754593314831,0.85643652,778.31,777.18,0.22368776]
[1754593315030,0.85643652,778.3,777.18,0.22368776]
[1754593315231,1.91826722,778.32,777.18,0.22368776]
[1754593315436,0.85643534,778.31,777.18,0.22368776]
[1754593315737,1.054,778.32,777.18,0.22368776]
[1754593316035,0.85643534,778.31,777.18,0.22368776]
[1754593316336,1.054,778.32,777.18,0.22368776]
[1754593316631,0.8564328,778.31,777.18,0.22368776]
[1754593316835,1.054,778.32,777.18,0.22368776]
[1754593317135,0.8564328,778.31,777.18,0.22368776]
[1754593317330,1.91826722,778.32,777.18,1.08249269]
[1754593317532,0.85643427,778.31,777.18,1.08249269]
[1754593317731,1.91826722,778.32,777.18,1.08249269]
[1754593317931,0.85648907,778.31,777.18,1.08249269]
[1754593318140,0.86426722,778.31,777.19,0.85880493]
[1754593319234,0.86426722,778.3,777.19,0.85880493]
[1754593319434,0.86426722,778.3,777.2,0.85880493]
[1754593319937,0.86426722,778.29,777.21,0.85880493]
[1754593320537,0.86426722,778.29,777.2,0.85880493]
[1754593321133,1.053,778.28,777.2,0.85880493]
[1754593321333,1.053,778.28,777.21,0.85880493]
[1754593321538,1.91726722,778.28,777.21,0.85880493]
[1754593322137,1.91726722,778.28,777.22,0.85880493]
[1754593322339,0.86426722,778.27,777.22,0.85880493]
[1754593323143,0.86426722,778.27,777.23,0.85880493]
[1754593323338,1.053,778.28,777.23,0.85880493]
[1754593323339,0.86426722,778.26,777.23,0.85880493]
[1754593324242,0.86426722,778.26,777.24,0.85880493]
[1754593324440,0.86426722,778.25,777.25,0.85880493]
[1754593324836,0.86426722,778.26,777.24,0.85880493]
[1754593325036,1.053,778.28,777.23,0.85880493]
[1754593325037,1.91726722,778.28,777.23,0.85880493]
[1754593325241,0.86426722,778.26,777.24,0.85880493]
[1754593325541,0.86426722,778.25,777.25,0.85880493]
[1754593326144,0.86426722,778.25,777.26,0.85880493]
[1754593326347,0.86426722,778.24,777.27,0.85880493]
[1754593326843,1.053,778.28,777.2,0.85880493]
[1754593327345,1.053,778.28,777.22,0.85880493]
[1754593328441,1.053,778.28,777.24,0.85880493]
[1754593329346,1.053,778.28,777.26,0.85880493]
[1754593330346,1.053,778.28,777.28,0.85880493]
[1754593331246,1.053,778.28,777.3,0.85880493]
[1754593332250,1.053,778.28,777.33,0.85880493]
[1754593333148,1.053,778.28,777.35,0.85880493]
[1754593333346,1.053,778.28,777.37,0.85880493]
[1754593334551,1.053,778.28,777.39,0.85880493]
[1754593335253,0.85642737,778.27,777.42,0.85880493]
[1754593335451,0.85642737,778.26,777.42,0.85880493]
[1754593335748,0.85642737,778.25,777.42,0.85880493]
[1754593335949,0.85642737,778.24,777.42,0.85880493]
[1754593336153,0.85642737,778.23,777.42,0.85880493]
[1754593336353,0.85642737,778.22,777.42,0.85880493]
[1754593336553,0.86426722,778.18,777.51,0.85880493]
[1754593336752,0.85642737,778.17,777.51,0.85880493]
[1754593336952,0.85642737,778.16,777.5,0.85880493]
[1754593337151,0.85642737,778.15,777.5,0.85880493]
[1754593337355,0.85642737,778.14,777.51,0.85880493]
[1754593337652,0.85642737,778.13,777.52,0.85880493]
[1754593337956,0.85642737,778.12,777.52,0.85880493]
[1754593338154,0.85642737,778.11,777.52,0.85880493]
[1754593338353,0.85642737,778.1,777.52,0.85880493]
[1754593338552,0.85642737,778.09,777.52,0.85880493]
[1754593338753,0.85642737,778.08,777.52,0.85880493]
[1754593338953,0.86426722,778.15,777.52,0.85880493]
[1754593339152,0.85477641,778.14,777.52,0.85880493]
[1754593339357,0.85477641,778.13,777.52,0.85880493]
[1754593339657,0.85477641,778.12,777.52,0.85880493]
[1754593339856,0.85477641,778.11,777.53,0.85880493]
[1754593340156,0.8544276,778.1,777.53,0.85880493]
[1754593340457,0.86426722,778.15,777.53,0.85880493]
[1754593340656,0.85416836,778.14,777.53,0.85880493]
[1754593340957,0.85416836,778.13,777.53,0.85880493]
[1754593341261,0.85416836,778.12,777.51,0.85880493]
[1754593343154,1.71843558,778.12,777.52,0.85880493]
[1754593343458,0.85416836,778.11,777.52,0.85880493]
[1754593343658,0.85416836,778.1,777.53,0.85880493]
[1754593343957,0.85416836,778.09,777.52,0.85880493]
[1754593344160,0.85289502,778.08,777.53,0.85880493]
[1754593344355,0.85289502,778.07,777.53,0.85880493]
[1754593344558,0.85289502,778.06,777.53,0.85880493]
[1754593344761,0.85289502,778.05,777.53,0.85880493]
[1754593344960,0.85289502,778.04,777.53,0.85880493]
[1754593345157,0.85289502,778.03,777.53,0.85880493]
[1754593345458,0.85289502,778.02,777.53,0.85880493]
[1754593345657,0.85289502,778.01,777.53,0.85880493]
[1754593345857,0.85289502,778.0,777.53,0.85880493]
[1754593346057,0.85289502,777.99,777.49,0.85880493]
[1754593346261,0.85289502,777.98,777.49,0.85880493]
[1754593346461,0.86426722,778.18,777.49,0.85880493]
[1754593346659,0.85187147,778.17,777.49,0.85880493]
[1754593346858,0.85187147,778.16,777.49,0.85880493]
[1754593347157,0.85187147,778.15,777.49,0.85880493]
[1754593347360,0.85187147,778.14,777.49,0.85880493]
[1754593347558,0.85187147,778.13,777.49,0.85880493]
[1754593347758,0.85187147,778.12,777.49,0.85880493]
[1754593347960,0.85187147,778.11,777.49,0.85880493]
[1754593348259,0.85187147,778.1,777.49,0.85880493]
[1754593348462,0.85187147,778.09,777.49,0.85880493]
[1754593348660,0.85187147,778.08,777.49,0.85880493]
[1754593348958,0.85187147,778.07,777.49,0.85880493]
[1754593349162,0.85187147,778.06,777.49,0.85880493]
[1754593349462,0.85187147,778.05,777.49,0.85880493]
[1754593349663,0.85187147,778.04,777.49,0.85880493]
[1754593349864,0.85187147,778.03,777.49,0.85880493]
[1754593350060,0.85187147,778.02,777.49,0.85880493]
[1754593350261,0.85187147,778.01,777.49,0.85880493]
[1754593350464,0.85187147,778.0,777.49,0.85880493]
[1754593350663,0.85187147,777.99,777.49,0.85880493]
[1754593350860,0.85187147,777.98,777.49,0.85880493]
[1754593351062,0.86426722,778.16,777.49,0.85880493]
[1754593351361,0.8514572,778.15,777.49,0.85880493]
[1754593351562,0.8514572,778.14,777.49,0.85880493]
[1754593351761,0.8514572,778.13,777.49,0.85880493]
[1754593351963,0.8514572,778.12,777.49,0.85880493]
[1754593352261,0.8514572,778.11,777.49,0.85880493]
[1754593352465,0.85126564,778.1,777.49,0.85880493]
[1754593352664,0.86426722,778.15,777.49,0.85880493]
[1754593352962,0.85111821,778.14,777.49,0.85880493]
[1754593353266,0.85111821,778.13,777.5,0.85880493]
[1754593353565,0.85111821,778.12,777.49,0.85880493]
[1754593353861,0.85111821,778.11,777.49,0.85880493]
[1754593354065,0.85111821,778.1,777.49,0.85880493]
[1754593354262,0.85111821,778.09,777.5,0.85880493]
[1754593354565,0.85111821,778.08,777.48,0.85880493]
[1754593354764,0.86426722,778.17,777.48,0.85880493]
[1754593355063,0.85080101,778.16,777.48,0.85880493]
[1754593355365,0.86426722,778.17,777.48,0.85880493]
[1754593355366,0.85080101,778.15,777.48,0.85880493]
[1754593355661,0.85080101,778.14,777.49,0.85880493]
[1754593355860,0.85080101,778.13,777.49,0.85880493]
[1754593356061,0.85080101,778.12,777.5,0.85880493]
[1754593356366,0.85080101,778.11,777.51,0.85880493]
[1754593356566,0.85080101,778.1,777.51,0.85880493]
[1754593356767,0.85080101,778.09,777.51,0.85880493]
[1754593356963,0.85080101,778.08,777.51,0.85880493]
[1754593357167,0.85080101,778.07,777.51,0.85880493]
[1754593357369,0.86426722,778.13,777.51,0.85880493]
[1754593357567,0.85063483,778.12,777.51,0.85880493]
[1754593357767,0.85063483,778.11,777.51,0.85880493]
[1754593357962,0.85063483,778.1,777.51,0.85880493]
[1754593358167,0.85063483,778.09,777.51,0.85880493]
[1754593358365,0.85063483,778.08,777.51,0.85880493]
[1754593358666,0.85063483,778.07,777.51,0.85880493]
[1754593358865,1.022,778.11,777.51,0.85880493]
[1754593359065,0.85059808,778.1,777.51,0.85880493]
[1754593359265,0.85059808,778.09,777.51,0.85880493]
[1754593359467,0.85059808,778.08,777.52,0.85880493]
[1754593359768,0.85059808,778.07,777.52,0.85880493]
[1754593359967,0.85059808,778.06,777.52,0.85880493]
[1754593360164,1.022,778.11,777.52,0.85880493]
[1754593360368,0.85054781,778.1,777.52,0.85880493]
[1754593360570,0.85054781,778.09,777.52,0.85880493]
[1754593360769,0.85054781,778.08,777.52,0.85880493]
[1754593360966,0.85054781,778.07,777.52,0.85880493]
[1754593361167,0.85054781,778.06,777.52,0.85880493]
[1754593361374,1.022,778.11,777.52,0.85880493]
[1754593361571,0.8505345,778.1,777.52,0.85880493]
[1754593361870,0.8505345,778.09,777.52,0.85880493]
[1754593362066,0.8505345,778.08,777.52,0.85880493]
[1754593362267,0.8505345,778.07,777.52,0.85880493]
[1754593362467,0.8505345,778.06,777.52,0.85880493]
[1754593362668,0.8505345,778.05,777.52,0.85880493]
[1754593362867,0.85055048,778.04,777.52,0.85880493]
[1754593363071,1.88626722,778.11,777.52,0.85880493]
[1754593363271,0.85054279,778.1,777.52,0.85880493]
[1754593363469,0.85054279,778.09,777.52,0.85880493]
[1754593363669,0.85054279,778.08,777.52,0.85880493]
[1754593363971,0.85054279,778.07,777.52,0.85880493]
[1754593364266,0.85054279,778.06,777.55,0.85880493]
[1754593364665,0.85053656,778.05,777.55,0.85880493]
[1754593364869,0.85053656,778.04,777.55,0.85880493]
[1754593365069,0.85053656,778.03,777.55,0.85880493]
[1754593365271,0.85053656,778.02,777.55,0.85880493]
[1754593365467,0.85053656,778.01,777.55,0.85880493]
[1754593365770,0.86426722,778.06,777.55,0.85880493]
[1754593365970,0.85054263,778.05,777.55,0.85880493]
[1754593366170,0.85054263,778.04,777.55,0.85880493]
[1754593366368,0.85054263,778.03,777.55,0.85880493]
[1754593366567,0.85054263,778.02,777.55,0.85880493]
[1754593366771,0.85054263,778.01,777.56,0.85880493]
[1754593367068,0.86426722,778.05,777.56,0.85880493]
[1754593367367,0.8505689,778.04,777.56,0.85880493]
[1754593367571,0.8505689,778.03,777.56,0.85880493]
[1754593367769,0.8505689,778.02,777.56,0.85880493]
[1754593368072,0.8505689,778.01,777.57,0.85880493]
[1754593368275,0.86426722,778.05,777.56,0.85880493]
[1754593368472,0.85061116,778.04,777.57,0.85880493]
[1754593368668,0.85061116,778.03,777.57,0.85880493]
[1754593368874,0.85061116,778.02,777.57,0.85880493]
[1754593369174,0.85061116,778.01,777.57,0.85880493]
[1754593369473,1.022,778.11,777.51,0.85880493]
[1754593369673,0.85065276,778.1,777.51,0.85880493]
[1754593369870,0.85065276,778.09,777.51,0.85880493]
[1754593370173,0.85065276,778.08,777.51,0.85880493]
[1754593370369,0.85065276,778.07,777.51,0.85880493]
[1754593370573,0.85065276,778.06,777.51,0.85880493]
[1754593370874,0.85065276,778.05,777.51,0.85880493]
[1754593371069,0.85065276,778.04,777.51,0.85880493]
[1754593371269,0.85065276,778.03,777.52,0.85880493]
[1754593371468,0.85065276,778.02,777.52,0.85880493]
[1754593371670,0.85065276,778.01,777.52,0.85880493]
[1754593371869,1.022,778.11,777.52,0.85880493]
[1754593372074,0.85077705,778.1,777.52,0.85880493]
[1754593372273,0.85077705,778.09,777.52,0.85880493]
[1754593372573,0.85077705,778.08,777.52,0.85880493]
[1754593372873,0.85077705,778.07,777.51,0.85880493]
[1754593373076,0.85077705,778.06,777.52,0.85880493]
[1754593373269,0.85077705,778.05,777.52,0.85880493]
[1754593373472,0.85077705,778.04,777.52,0.85880493]
[1754593373774,1.022,778.11,777.52,0.85880493]
[1754593373775,0.85077705,778.03,777.52,0.85880493]
[1754593374075,0.85077705,778.02,777.52,0.85880493]
[1754593374276,1.022,778.11,777.52,0.85880493]
[1754593374478,0.8509636,778.1,777.54,0.85880493]
[1754593374773,1.022,778.11,777.54,0.85880493]
[1754593374774,0.8509636,778.09,777.54,0.85880493]
[1754593374977,0.8509636,778.08,777.54,0.85880493]
[1754593375175,0.8509636,778.07,777.54,0.85880493]
[1754593375379,0.8509636,778.06,777.54,0.85880493]
[1754593375678,0.8509636,778.05,777.54,0.85880493]
[1754593375879,0.85105296,778.04,777.56,0.85880493]
[1754593376179,0.85105296,778.03,777.56,0.85880493]
[1754593376379,0.85112782,778.02,777.56,0.85880493]
[1754593376674,0.85112782,778.01,777.56,0.85880493]
[1754593376879,0.85112782,778.0,777.56,0.85880493]